Workbook

Sheet C1_DIA_WAN_menu
B1: Pricing Attachment - Dedicated Internet and Wide Area Network (WAN) Point to Point Transport Services
B3: This sheet should be completed by vendor and submitted with offer.
B4: A response must be included for each row below. If a service level is not offered, vendors must enter N/A. If no charge applies, vendors must enter $0.00.
B5: Should there be a discrepancy between the fees listed in this Pricing Attachment and any other proposal response document, the costs offered in this document shall prevail.
B7: Applicant & BEN: | C7: Portales Municipal Schools 143338 | H7: Offeror:
B8: Form 470 #: | C8: 260002436 | H8: Contact:
B9: Initial Term: | C9: 60-months; 07/01/26 - 06/30/31 | H9: Email:
B11: #1 | C11: Dedicated Internet A-Location (NOC)
C13: Special Construction Fees for A-Location (Build costs outside of standard installation NRC)
C14: Location Name | D14: Address | G14: E-Rate Eligible Special Construction | H14: E-Rate Ineligible Special Construction | I14: Total Special Construction | J14: Applicable to All Bandwidth Levels? | K14: If costs are conditional, explain here.
C15: Portales Admin | D15: 501 S. Abilene Ave., Portales, NM 88130 | I15: =G15+H15 -> $0.00
C17: Dedicated Internet Service Fees for A-Location (NOC)
C18: Bandwidth | D18: E-Rate Eligible NRC | E18: E-Rate Ineligible NRC | F18: E-Rate Eligible MRC | G18: E-Rate Ineligible MRC | H18: Notes
C19: 500 Mbps
C20: 750 Mbps
C21: 1 Gbps
C22: 2 Gbps
C23: 5 Gbps
C24: 10 Gbps
C26: Router/Managed Equipment for A-Location (NOC)
C27: Make/Model Offered | D27: E-Rate Eligible NRC | E27: E-Rate Ineligible NRC | F27: E-Rate Eligible MRC | G27: E-Rate Ineligible MRC | H27: Notes
C30: Static IP Fees for A-Location (NOC)
C31: IP Block Type/# | D31: E-Rate Eligible NRC | E31: E-Rate Ineligible NRC | F31: E-Rate Eligible MRC | G31: E-Rate Ineligible MRC | H31: Notes
B37: #2 | C37: Wide Area Network (WAN) Point to Point Transport for Z-Locations*
C39: Special Construction Fees for Z-Locations (Build costs outside of standard installation NRC)
C40: Location Name | D40: Address | G40: E-Rate Eligible Special Construction | H40: E-Rate Ineligible Special Construction | I40: Total Special Construction | J40: Applicable to All Bandwidth Levels? | K40: If costs are conditional, explain here.
C41: Portales Admin (NOC) | D41: 501 S. Abilene Ave. | E41: Portales, NM 88130 | I41: $0.00
C42: Brown ES | D42: 520 W 5th Street | E42: Portales, NM 88130 | I42: $0.00
C43: James ES | D43: 701 W 18th Street | E43: Portales, NM 88130 | I43: $0.00
C44: Lindsey-Steiner ES | D44: 1216 W Ivy Street | E44: Portales, NM 88130 | I44: $0.00
C45: Portales HS | D45: 201 S Knoxville Street | E45: Portales, NM 88130 | I45: $0.00
C46: Portales JHS | D46: 300 E 5th Street | E46: Portales, NM 88130 | I46: $0.00
C47: Valencia ES | D47: 1415 S Globe Ave | E47: Portales, NM 88130 | I47: $0.00
I48: $0.00
I49: $0.00
I50: $0.00
C52: Wide Area Network (WAN) Point to Point Transport Fees for Z-Locations
C53: Bandwidth | D53: E-Rate Eligible NRC | E53: E-Rate Ineligible NRC | F53: E-Rate Eligible MRC | G53: E-Rate Ineligible MRC | H53: Notes
C54: 500 Mbps
C55: 750 Mbps
C56: 1 Gbps
C57: 2 Gbps
C58: 5 Gbps
C59: 10 Gbps
C62: * Fees quoted are the unit costs for both endpoints.
C64: Router/Managed Equipment for Z-Locations
C65: Make/Model Offered | D65: E-Rate Eligible NRC | E65: E-Rate Ineligible NRC | F65: E-Rate Eligible MRC | G65: E-Rate Ineligible MRC | H65: Notes
B71: #3 | C71: Additional Services/Fees
C73: Filtering
C74: Is basic firewall service provided as part of your standard service at no additional charge?
C75: Are advanced firewall services available for an optional fee? If so, what is the MRC? | K75: Remove this line if not requested
C76: Are DDoS services available for an optional fee? If so, what is the MRC? | K76: Remove this line if not requested
C78: Additional Fees
C79: Will additional fees/surcharges be applied to any of the quoted services?
C80: If yes, please provide an explanation of the expected fees and an estimated MRC.

Sheet C1_DIA_WAN_site
B1: Pricing Attachment - Wide Area Network (WAN) Point to Point Transport Service
B3: Sheet must be completed by vendor and submitted with offer.
B4: 1. A response must be included for each row below. If a service level is not available, Offerors must enter N/A. If no charge applies, vendors must enter $0.00.
B5: 2. Bandwidth MRC entries must be the total cost for both endpoints of the connection.
B6: 3. Initial contract term cost calculations are based on the premise all quoted NRC are applicable to all requested service levels. Should pricing of NRC be dependent on the bandwidth level, Offerors are requested to create new/separate rows for the impacted service levels.
B7: 4. Should there be a discrepancy between the fees listed in this Pricing Attachment and any other proposal response document, the costs offered in this document shall prevail.
B9: Applicant (BEN): | C9: Portales Municipal Schools 143338
B10: FCC Form 470 #: | C10: 260002436
B11: Offeror:
B12: Offeror Contact: | L12: DO NOT DELETE COLUMNS L - P
B13: Offeror Email: | L13: DELETE EXAMPLE CONTENTS AND
L14: HIDE COLUMNS IF NOT PART OF THIS BID REQUEST
B15: Dedicated Internet Service Location | F15: Initial Term | G15: Dedicated Internet (without Transport) MRC | L15: Leased Router MRC | Q15: Installation and Special Construction NRC | W15: Additional MRC | AA15: Initial Contract Term Total Costs | AF15: Initial Contract Term E-Rate Eligible Costs | AK15: Initial Contract Term E-Rate Ineligible Costs
B16: "A" Location (NOC) Name | C16: "A" (NOC) Address | F16: Months | G16: 500 Mbps | H16: 750 Mbps | I16: 1 Gbps | J16: 5 Gbps | K16: 10 Gbps | L16: 500 Mbps | M16: 750 Mbps | N16: 1 Gbps | O16: 5 Gbps | P16: 10 Gbps | Q16: Basic Installation | R16: E-Rate Eligible Special Construction | S16: E-Rate Ineligible Special Construction | T16: Total Special Construction | U16: Applicable to All Bandwidth Levels? | V16: If costs are conditional, explain here. | W16: Static IP Required | X16: Static IP Fee for the Qty Required MRC | Y16: Advanced Firewall Service | Z16: DDoS | AA16: 1 Gbps | AB16: 2 Gbps | AC16: 5 Gbps | AD16: 10 Gbps | AE16: 20 Gbps | AF16: 1 Gbps | AG16: 2 Gbps | AH16: 5 Gbps | AI16: 10 Gbps | AJ16: 20 Gbps | AK16: 1 Gbps | AL16: 2 Gbps | AM16: 5 Gbps | AN16: 10 Gbps | AO16: 20 Gbps
B17: Example School A | C17: 123 School St, ABCville, VA 01234 | F17: 60 | G17: $100.00 | H17: $200.00 | I17: $300.00 | J17: 0 | K17: 0 | L17: $20.00 | M17: $25.00 | N17: $25.00 | O17: 0 | P17: 0 | Q17: $100.00 | R17: 0 | S17: 0 | T17: =R17+S17 -> 0 | U17: No | X17: $25.00 | Y17: $25.00 | Z17: 0 | AA17: =IF($G17<1,0,(($G17+$L17)*$F17)+$Q17+$T17) -> $7,300.00 | AB17: =IF($H17<1,0,(($H17+$M17)*$F17)+$Q17+$T17) -> $13,600.00 | AC17: =IF($I17<1,0,(($I17+$N17)*$F17)+$Q17+$T17) -> $19,600.00 | AD17: =IF($J17<1,0,(($J17+$O17)*$F17)+$Q17+$T17) -> 0 | AE17: =IF($K17<1,0,(($K17+$P17)*$F17)+$Q17+$T17) -> 0 | AF17: =IF($G17<1,0,(($G17+$L17)*$F17)+$Q17+$R17) -> $7,300.00 | AG17: =IF($H17<1,0,(($H17+$M17)*$F17)+$Q17+$R17) -> $13,600.00 | AH17: =IF($I17<1,0,(($I17+$N17)*$F17)+$Q17+$R17) -> $19,600.00 | AI17: =IF($J17<1,0,(($J17+$O17)*$F17)+$Q17+$R17) -> 0 | AJ17: =IF($K17<1,0,(($K17+$P17)*$F17)+$Q17+$R17) -> 0 | AK17: =AA17-AF17 -> 0 | AL17: =AB17-AG17 -> 0 | AM17: =AC17-AH17 -> 0 | AN17: 0 | AO17: =AE17-AJ17 -> 0
B18: Example School A | C18: 123 School St, ABCville, VA 01234 | F18: 60 | G18: 0 | H18: 0 | I18: 0 | J18: $400.00 | K18: $500.00 | L18: 0 | M18: 0 | N18: 0 | O18: $25.00 | P18: $40.00 | Q18: $100.00 | R18: $2,000.00 | S18: 0 | T18: =R18+S18 -> $2,000.00 | U18: No | X18: 0 | Y18: 0 | Z18: $40.00 | AA18: 0 | AB18: 0 | AC18: 0 | AD18: $27,600.00 | AE18: $34,500.00 | AF18: 0 | AG18: 0 | AH18: 0 | AI18: $27,600.00 | AJ18: $34,500.00 | AK18: =AA18-AF18 -> 0 | AL18: 0 | AM18: 0 | AN18: 0 | AO18: 0
T19: 0 | AA19: 0 | AB19: 0 | AC19: 0 | AD19: 0 | AE19: 0 | AF19: 0 | AG19: 0 | AH19: 0 | AI19: 0 | AJ19: 0 | AK19: 0 | AL19: 0 | AM19: 0 | AN19: 0 | AO19: 0
B20: Portales Admin | C20: 501 S. Abilene Ave., Portales, NM 88130 | F20: 60 | T20: 0 | AA20: 0 | AB20: 0 | AC20: 0 | AD20: 0 | AE20: 0 | AF20: 0 | AG20: 0 | AH20: 0 | AI20: 0 | AJ20: 0 | AK20: 0 | AL20: 0 | AM20: 0 | AN20: 0 | AO20: 0
T21: 0 | AA21: 0 | AB21: 0 | AC21: 0 | AD21: 0 | AE21: 0 | AF21: 0 | AG21: 0 | AH21: 0 | AI21: 0 | AJ21: 0 | AK21: 0 | AL21: 0 | AM21: 0 | AN21: 0 | AO21: 0
T22: 0 | AA22: 0 | AB22: 0 | AC22: 0 | AD22: 0 | AE22: 0 | AF22: 0 | AG22: 0 | AH22: 0 | AI22: 0 | AJ22: 0 | AK22: 0 | AL22: 0 | AM22: 0 | AN22: 0 | AO22: 0
B26: Wide Area Network (WAN) Point to Point Service Locations | F26: Initial Term | G26: Wide Area Network (WAN) Point to Point Transport MRC | L26: Leased Router MRC | Q26: Installation and Special Construction NRC | W26: Initial Contract Term Total Costs | AB26: Initial Contract Term E-Rate Eligible Costs | AG26: Initial Contract Term E-Rate Ineligible Costs
B27: "Z" Location Name | C27: "Z" Address | F27: Months | G27: 500 Mbps | H27: 750 Mbps | I27: 1 Gbps | J27: 5 Gbps | K27: 10 Gbps | L27: 500 Mbps | M27: 750 Mbps | N27: 1 Gbps | O27: 5 Gbps | P27: 10 Gbps | Q27: Basic Installation | R27: E-Rate Eligible Special Construction | S27: E-Rate Ineligible Special Construction | T27: Total Special Construction | U27: Applicable to All Bandwidth Levels? | V27: If costs are conditional, explain here. | W27: 1 Gbps | X27: 2 Gbps | Y27: 5 Gbps | Z27: 10 Gbps | AA27: 20 Gbps | AB27: 1 Gbps | AC27: 2 Gbps | AD27: 5 Gbps | AE27: 10 Gbps | AF27: 20 Gbps | AG27: 1 Gbps | AH27: 2 Gbps | AI27: 5 Gbps | AJ27: 10 Gbps | AK27: 20 Gbps
B28: Example School B | C28: 456 Main St, ABCville, VA 01234 | F28: 60 | G28: $100.00 | H28: $200.00 | I28: $300.00 | J28: $400.00 | K28: $500.00 | L28: $20.00 | M28: $25.00 | N28: $25.00 | O28: $25.00 | P28: $40.00 | Q28: $100.00 | R28: $3,750.00 | S28: 0 | T28: =R28+S28 -> $3,750.00 | U28: Yes | V28: N/A | W28: =IF($G28<1,0,(($G28+$L28)*$F28)+$Q28+$T28) -> $11,050.00 | X28: =IF($H28<1,0,(($H28+$M28)*$F28)+$Q28+$T28) -> $17,350.00 | Y28: =IF($I28<1,0,(($I28+$N28)*$F28)+$Q28+$T28) -> $23,350.00 | Z28: =IF($J28<1,0,(($J28+$O28)*$F28)+$Q28+$T28) -> $29,350.00 | AA28: =IF($K28<1,0,(($K28+$P28)*$F28)+$Q28+$T28) -> $36,250.00 | AB28: =IF($G28<1,0,(($G28+$L28)*$F28)+$Q28+$R28) -> $11,050.00 | AC28: =IF($H28<1,0,(($H28+$M28)*$F28)+$Q28+$R28) -> $17,350.00 | AD28: =IF($I28<1,0,(($I28+$N28)*$F28)+$Q28+$R28) -> $23,350.00 | AE28: =IF($J28<1,0,(($J28+$O28)*$F28)+$Q28+$R28) -> $29,350.00 | AF28: =IF($K28<1,0,(($K28+$P28)*$F28)+$Q28+$R28) -> $36,250.00 | AG28: =W28-AB28 -> 0 | AH28: 0 | AI28: 0 | AJ28: 0 | AK28: 0
B29: Example School C | C29: 789 Library St, ABCville, VA 01234 | F29: 60 | G29: $100.00 | H29: $200.00 | I29: $300.00 | J29: 0 | K29: 0 | L29: $20.00 | M29: $25.00 | N29: $25.00 | O29: 0 | P29: 0 | Q29: $100.00 | R29: 0 | S29: 0 | T29: =R29+S29 -> 0 | U29: No | V29: Const req for 10+ Gbps | W29: =IF($G29<1,0,(($G29+$L29)*$F29)+$Q29+$T29) -> $7,300.00 | X29: =IF($H29<1,0,(($H29+$M29)*$F29)+$Q29+$T29) -> $13,600.00 | Y29: =IF($I29<1,0,(($I29+$N29)*$F29)+$Q29+$T29) -> $19,600.00 | Z29: =IF($J29<1,0,(($J29+$O29)*$F29)+$Q29+$T29) -> 0 | AA29: =IF($K29<1,0,(($K29+$P29)*$F29)+$Q29+$T29) -> 0 | AB29: =IF($G29<1,0,(($G29+$L29)*$F29)+$Q29+$R29) -> $7,300.00 | AC29: =IF($H29<1,0,(($H29+$M29)*$F29)+$Q29+$R29) -> $13,600.00 | AD29: =IF($I29<1,0,(($I29+$N29)*$F29)+$Q29+$R29) -> $19,600.00 | AE29: =IF($J29<1,0,(($J29+$O29)*$F29)+$Q29+$R29) -> 0 | AF29: =IF($K29<1,0,(($K29+$P29)*$F29)+$Q29+$R29) -> 0 | AG29: =W29-AB29 -> 0 | AH29: =X29-AC29 -> 0 | AI29: 0 | AJ29: 0 | AK29: =AA29-AF29 -> 0
B30: Example School C | C30: 789 Library St, ABCville, VA 01234 | F30: 60 | G30: 0 | H30: 0 | I30: 0 | J30: $400.00 | K30: $500.00 | L30: 0 | M30: 0 | N30: 0 | O30: $25.00 | P30: $40.00 | Q30: $100.00 | R30: $2,000.00 | S30: 0 | T30: =R30+S30 -> $2,000.00 | U30: No | V30: Const req for 10+ Gbps | W30: =IF($G30<1,0,(($G30+$L30)*$F30)+$Q30+$T30) -> 0 | X30: =IF($H30<1,0,(($H30+$M30)*$F30)+$Q30+$T30) -> 0 | Y30: =IF($I30<1,0,(($I30+$N30)*$F30)+$Q30+$T30) -> 0 | Z30: =IF($J30<1,0,(($J30+$O30)*$F30)+$Q30+$T30) -> $27,600.00 | AA30: =IF($K30<1,0,(($K30+$P30)*$F30)+$Q30+$T30) -> $34,500.00 | AB30: =IF($G30<1,0,(($G30+$L30)*$F30)+$Q30+$R30) -> 0 | AC30: =IF($H30<1,0,(($H30+$M30)*$F30)+$Q30+$R30) -> 0 | AD30: =IF($I30<1,0,(($I30+$N30)*$F30)+$Q30+$R30) -> 0 | AE30: =IF($J30<1,0,(($J30+$O30)*$F30)+$Q30+$R30) -> $27,600.00 | AF30: =IF($K30<1,0,(($K30+$P30)*$F30)+$Q30+$R30) -> $34,500.00 | AG30: =W30-AB30 -> 0 | AH30: 0 | AI30: 0 | AJ30: 0 | AK30: 0
B31: Blank | C31: Blank | F31: 0 | G31: 0 | H31: 0 | I31: 0 | J31: 0 | K31: 0 | L31: 0 | M31: 0 | N31: 0 | O31: 0 | P31: 0 | Q31: 0 | R31: 0 | S31: 0 | T31: 0 | V31: Blank | W31: 0 | X31: 0 | Y31: 0 | Z31: 0 | AA31: 0 | AB31: 0 | AC31: 0 | AD31: 0 | AE31: 0 | AF31: 0 | AG31: 0 | AH31: 0 | AI31: 0 | AJ31: 0 | AK31: 0
B32: Brown ES | C32: 520 W 5th Street, Portales, NM 88130 | F32: 60 | T32: 0 | W32: 0 | X32: 0 | Y32: 0 | Z32: 0 | AA32: 0 | AB32: 0 | AC32: 0 | AD32: 0 | AE32: 0 | AF32: 0 | AG32: 0 | AH32: 0 | AI32: 0 | AJ32: 0 | AK32: 0
B33: James ES | C33: 701 W 18th Street, Portales, NM 88130 | F33: 60 | T33: 0 | W33: 0 | X33: 0 | Y33: 0 | Z33: 0 | AA33: 0 | AB33: 0 | AC33: 0 | AD33: 0 | AE33: 0 | AF33: 0 | AG33: 0 | AH33: 0 | AI33: 0 | AJ33: 0 | AK33: 0
B34: Lindsey-Steiner ES | C34: 1216 W Ivy Street, Portales, NM 88130 | F34: 60 | T34: 0 | W34: 0 | X34: 0 | Y34: 0 | Z34: 0 | AA34: 0 | AB34: 0 | AC34: 0 | AD34: 0 | AE34: 0 | AF34: 0 | AG34: 0 | AH34: 0 | AI34: 0 | AJ34: 0 | AK34: 0
B35: Portales HS | C35: 201 S Knoxville Street, Portales, NM 88130 | F35: 60 | T35: 0 | W35: 0 | X35: 0 | Y35: 0 | Z35: 0 | AA35: 0 | AB35: 0 | AC35: 0 | AD35: 0 | AE35: 0 | AF35: 0 | AG35: 0 | AH35: 0 | AI35: 0 | AJ35: 0 | AK35: 0
B36: Portales JHS | C36: 300 E 5th Street, Portales, NM 88130 | F36: 60 | T36: 0 | W36: 0 | X36: 0 | Y36: 0 | Z36: 0 | AA36: 0 | AB36: 0 | AC36: 0 | AD36: 0 | AE36: 0 | AF36: 0 | AG36: 0 | AH36: 0 | AI36: 0 | AJ36: 0 | AK36: 0
B37: Valencia ES | C37: 1415 S Globe Ave., Portales, NM 88130 | F37: 60 | T37: 0 | W37: 0 | X37: 0 | Y37: 0 | Z37: 0 | AA37: 0 | AB37: 0 | AC37: 0 | AD37: 0 | AE37: 0 | AF37: 0 | AG37: 0 | AH37: 0 | AI37: 0 | AJ37: 0 | AK37: 0
T38: 0 | W38: 0 | X38: 0 | Y38: 0 | Z38: 0 | AA38: 0 | AB38: 0 | AC38: 0 | AD38: 0 | AE38: 0 | AF38: 0 | AG38: 0 | AH38: 0 | AI38: 0 | AJ38: 0 | AK38: 0
T39: 0 | W39: 0 | X39: 0 | Y39: 0 | Z39: 0 | AA39: 0 | AB39: 0 | AC39: 0 | AD39: 0 | AE39: 0 | AF39: 0 | AG39: 0 | AH39: 0 | AI39: 0 | AJ39: 0 | AK39: 0
T40: 0 | W40: 0 | X40: 0 | Y40: 0 | Z40: 0 | AA40: 0 | AB40: 0 | AC40: 0 | AD40: 0 | AE40: 0 | AF40: 0 | AG40: 0 | AH40: 0 | AI40: 0 | AJ40: 0 | AK40: 0
T41: 0 | W41: 0 | X41: 0 | Y41: 0 | Z41: 0 | AA41: 0 | AB41: 0 | AC41: 0 | AD41: 0 | AE41: 0 | AF41: 0 | AG41: 0 | AH41: 0 | AI41: 0 | AJ41: 0 | AK41: 0
T42: 0 | W42: 0 | X42: 0 | Y42: 0 | Z42: 0 | AA42: 0 | AB42: 0 | AC42: 0 | AD42: 0 | AE42: 0 | AF42: 0 | AG42: 0 | AH42: 0 | AI42: 0 | AJ42: 0 | AK42: 0
T43: 0 | W43: 0 | X43: 0 | Y43: 0 | Z43: 0 | AA43: 0 | AB43: 0 | AC43: 0 | AD43: 0 | AE43: 0 | AF43: 0 | AG43: 0 | AH43: 0 | AI43: 0 | AJ43: 0 | AK43: 0
T44: 0 | W44: 0 | X44: 0 | Y44: 0 | Z44: 0 | AA44: 0 | AB44: 0 | AC44: 0 | AD44: 0 | AE44: 0 | AF44: 0 | AG44: 0 | AH44: 0 | AI44: 0 | AJ44: 0 | AK44: 0
T45: 0 | W45: 0 | X45: 0 | Y45: 0 | Z45: 0 | AA45: 0 | AB45: 0 | AC45: 0 | AD45: 0 | AE45: 0 | AF45: 0 | AG45: 0 | AH45: 0 | AI45: 0 | AJ45: 0 | AK45: 0
T46: 0 | W46: 0 | X46: 0 | Y46: 0 | Z46: 0 | AA46: 0 | AB46: 0 | AC46: 0 | AD46: 0 | AE46: 0 | AF46: 0 | AG46: 0 | AH46: 0 | AI46: 0 | AJ46: 0 | AK46: 0
T47: 0 | W47: 0 | X47: 0 | Y47: 0 | Z47: 0 | AA47: 0 | AB47: 0 | AC47: 0 | AD47: 0 | AE47: 0 | AF47: 0 | AG47: 0 | AH47: 0 | AI47: 0 | AJ47: 0 | AK47: 0
T48: 0 | W48: 0 | X48: 0 | Y48: 0 | Z48: 0 | AA48: 0 | AB48: 0 | AC48: 0 | AD48: 0 | AE48: 0 | AF48: 0 | AG48: 0 | AH48: 0 | AI48: 0 | AJ48: 0 | AK48: 0
T49: 0 | W49: 0 | X49: 0 | Y49: 0 | Z49: 0 | AA49: 0 | AB49: 0 | AC49: 0 | AD49: 0 | AE49: 0 | AF49: 0 | AG49: 0 | AH49: 0 | AI49: 0 | AJ49: 0 | AK49: 0
T50: 0 | W50: 0 | X50: 0 | Y50: 0 | Z50: 0 | AA50: 0 | AB50: 0 | AC50: 0 | AD50: 0 | AE50: 0 | AF50: 0 | AG50: 0 | AH50: 0 | AI50: 0 | AJ50: 0 | AK50: 0
T51: 0 | W51: 0 | X51: 0 | Y51: 0 | Z51: 0 | AA51: 0 | AB51: 0 | AC51: 0 | AD51: 0 | AE51: 0 | AF51: 0 | AG51: 0 | AH51: 0 | AI51: 0 | AJ51: 0 | AK51: 0
T52: 0 | W52: 0 | X52: 0 | Y52: 0 | Z52: 0 | AA52: 0 | AB52: 0 | AC52: 0 | AD52: 0 | AE52: 0 | AF52: 0 | AG52: 0 | AH52: 0 | AI52: 0 | AJ52: 0 | AK52: 0
T53: 0 | W53: 0 | X53: 0 | Y53: 0 | Z53: 0 | AA53: 0 | AB53: 0 | AC53: 0 | AD53: 0 | AE53: 0 | AF53: 0 | AG53: 0 | AH53: 0 | AI53: 0 | AJ53: 0 | AK53: 0
T54: 0 | W54: 0 | X54: 0 | Y54: 0 | Z54: 0 | AA54: 0 | AB54: 0 | AC54: 0 | AD54: 0 | AE54: 0 | AF54: 0 | AG54: 0 | AH54: 0 | AI54: 0 | AJ54: 0 | AK54: 0
T55: 0 | W55: 0 | X55: 0 | Y55: 0 | Z55: 0 | AA55: 0 | AB55: 0 | AC55: 0 | AD55: 0 | AE55: 0 | AF55: 0 | AG55: 0 | AH55: 0 | AI55: 0 | AJ55: 0 | AK55: 0
T56: 0 | W56: 0 | X56: 0 | Y56: 0 | Z56: 0 | AA56: 0 | AB56: 0 | AC56: 0 | AD56: 0 | AE56: 0 | AF56: 0 | AG56: 0 | AH56: 0 | AI56: 0 | AJ56: 0 | AK56: 0
T57: 0 | W57: 0 | X57: 0 | Y57: 0 | Z57: 0 | AA57: 0 | AB57: 0 | AC57: 0 | AD57: 0 | AE57: 0 | AF57: 0 | AG57: 0 | AH57: 0 | AI57: 0 | AJ57: 0 | AK57: 0
T58: 0 | W58: 0 | X58: 0 | Y58: 0 | Z58: 0 | AA58: 0 | AB58: 0 | AC58: 0 | AD58: 0 | AE58: 0 | AF58: 0 | AG58: 0 | AH58: 0 | AI58: 0 | AJ58: 0 | AK58: 0
T59: 0 | W59: 0 | X59: 0 | Y59: 0 | Z59: 0 | AA59: 0 | AB59: 0 | AC59: 0 | AD59: 0 | AE59: 0 | AF59: 0 | AG59: 0 | AH59: 0 | AI59: 0 | AJ59: 0 | AK59: 0
T60: 0 | W60: 0 | X60: 0 | Y60: 0 | Z60: 0 | AA60: 0 | AB60: 0 | AC60: 0 | AD60: 0 | AE60: 0 | AF60: 0 | AG60: 0 | AH60: 0 | AI60: 0 | AJ60: 0 | AK60: 0
T61: 0 | W61: 0 | X61: 0 | Y61: 0 | Z61: 0 | AA61: 0 | AB61: 0 | AC61: 0 | AD61: 0 | AE61: 0 | AF61: 0 | AG61: 0 | AH61: 0 | AI61: 0 | AJ61: 0 | AK61: 0
T62: 0 | W62: 0 | X62: 0 | Y62: 0 | Z62: 0 | AA62: 0 | AB62: 0 | AC62: 0 | AD62: 0 | AE62: 0 | AF62: 0 | AG62: 0 | AH62: 0 | AI62: 0 | AJ62: 0 | AK62: 0
T63: 0 | W63: 0 | X63: 0 | Y63: 0 | Z63: 0 | AA63: 0 | AB63: 0 | AC63: 0 | AD63: 0 | AE63: 0 | AF63: 0 | AG63: 0 | AH63: 0 | AI63: 0 | AJ63: 0 | AK63: 0
T64: 0 | W64: 0 | X64: 0 | Y64: 0 | Z64: 0 | AA64: 0 | AB64: 0 | AC64: 0 | AD64: 0 | AE64: 0 | AF64: 0 | AG64: 0 | AH64: 0 | AI64: 0 | AJ64: 0 | AK64: 0
T65: 0 | W65: 0 | X65: 0 | Y65: 0 | Z65: 0 | AA65: 0 | AB65: 0 | AC65: 0 | AD65: 0 | AE65: 0 | AF65: 0 | AG65: 0 | AH65: 0 | AI65: 0 | AJ65: 0 | AK65: 0
T66: 0 | W66: 0 | X66: 0 | Y66: 0 | Z66: 0 | AA66: 0 | AB66: 0 | AC66: 0 | AD66: 0 | AE66: 0 | AF66: 0 | AG66: 0 | AH66: 0 | AI66: 0 | AJ66: 0 | AK66: 0
T67: 0 | W67: 0 | X67: 0 | Y67: 0 | Z67: 0 | AA67: 0 | AB67: 0 | AC67: 0 | AD67: 0 | AE67: 0 | AF67: 0 | AG67: 0 | AH67: 0 | AI67: 0 | AJ67: 0 | AK67: 0
T68: 0 | W68: 0 | X68: 0 | Y68: 0 | Z68: 0 | AA68: 0 | AB68: 0 | AC68: 0 | AD68: 0 | AE68: 0 | AF68: 0 | AG68: 0 | AH68: 0 | AI68: 0 | AJ68: 0 | AK68: 0
T69: 0 | W69: 0 | X69: 0 | Y69: 0 | Z69: 0 | AA69: 0 | AB69: 0 | AC69: 0 | AD69: 0 | AE69: 0 | AF69: 0 | AG69: 0 | AH69: 0 | AI69: 0 | AJ69: 0 | AK69: 0
T70: 0 | W70: 0 | X70: 0 | Y70: 0 | Z70: 0 | AA70: 0 | AB70: 0 | AC70: 0 | AD70: 0 | AE70: 0 | AF70: 0 | AG70: 0 | AH70: 0 | AI70: 0 | AJ70: 0 | AK70: 0
T71: 0 | W71: 0 | X71: 0 | Y71: 0 | Z71: 0 | AA71: 0 | AB71: 0 | AC71: 0 | AD71: 0 | AE71: 0 | AF71: 0 | AG71: 0 | AH71: 0 | AI71: 0 | AJ71: 0 | AK71: 0
T72: 0 | W72: 0 | X72: 0 | Y72: 0 | Z72: 0 | AA72: 0 | AB72: 0 | AC72: 0 | AD72: 0 | AE72: 0 | AF72: 0 | AG72: 0 | AH72: 0 | AI72: 0 | AJ72: 0 | AK72: 0
T73: 0 | W73: 0 | X73: 0 | Y73: 0 | Z73: 0 | AA73: 0 | AB73: 0 | AC73: 0 | AD73: 0 | AE73: 0 | AF73: 0 | AG73: 0 | AH73: 0 | AI73: 0 | AJ73: 0 | AK73: 0
T74: 0 | W74: 0 | X74: 0 | Y74: 0 | Z74: 0 | AA74: 0 | AB74: 0 | AC74: 0 | AD74: 0 | AE74: 0 | AF74: 0 | AG74: 0 | AH74: 0 | AI74: 0 | AJ74: 0 | AK74: 0
T75: 0 | W75: 0 | X75: 0 | Y75: 0 | Z75: 0 | AA75: 0 | AB75: 0 | AC75: 0 | AD75: 0 | AE75: 0 | AF75: 0 | AG75: 0 | AH75: 0 | AI75: 0 | AJ75: 0 | AK75: 0
T76: 0 | W76: 0 | X76: 0 | Y76: 0 | Z76: 0 | AA76: 0 | AB76: 0 | AC76: 0 | AD76: 0 | AE76: 0 | AF76: 0 | AG76: 0 | AH76: 0 | AI76: 0 | AJ76: 0 | AK76: 0
T77: 0 | W77: 0 | X77: 0 | Y77: 0 | Z77: 0 | AA77: 0 | AB77: 0 | AC77: 0 | AD77: 0 | AE77: 0 | AF77: 0 | AG77: 0 | AH77: 0 | AI77: 0 | AJ77: 0 | AK77: 0
T78: 0 | W78: 0 | X78: 0 | Y78: 0 | Z78: 0 | AA78: 0 | AB78: 0 | AC78: 0 | AD78: 0 | AE78: 0 | AF78: 0 | AG78: 0 | AH78: 0 | AI78: 0 | AJ78: 0 | AK78: 0
T79: 0 | W79: 0 | X79: 0 | Y79: 0 | Z79: 0 | AA79: 0 | AB79: 0 | AC79: 0 | AD79: 0 | AE79: 0 | AF79: 0 | AG79: 0 | AH79: 0 | AI79: 0 | AJ79: 0 | AK79: 0
T80: 0 | W80: 0 | X80: 0 | Y80: 0 | Z80: 0 | AA80: 0 | AB80: 0 | AC80: 0 | AD80: 0 | AE80: 0 | AF80: 0 | AG80: 0 | AH80: 0 | AI80: 0 | AJ80: 0 | AK80: 0
T81: 0 | W81: 0 | X81: 0 | Y81: 0 | Z81: 0 | AA81: 0 | AB81: 0 | AC81: 0 | AD81: 0 | AE81: 0 | AF81: 0 | AG81: =W81-AB81 -> 0 | AH81: 0 | AI81: 0 | AJ81: 0 | AK81: 0
T82: 0 | W82: 0 | X82: 0 | Y82: 0 | Z82: 0 | AA82: 0 | AB82: 0 | AC82: 0 | AD82: 0 | AE82: 0 | AF82: 0 | AG82: 0 | AH82: 0 | AI82: 0 | AJ82: 0 | AK82: 0
B84: Provide the manufacturer make, model and E-Rate eligibility of any vendor provided equip:
B85: Do USF fees apply to any of these services?
B86: Do any service provider fees/surcharges apply to any of these services?
